Cogmind - Beta 13 @@@ ROGUE MODE // 2024.05.02 @ 20:10:13 Player: AntinDisguise Result: Self-destructed Performance ------------- Evolutions (1) 500 Regions Visited (2) 400 Robots Destroyed (19) 95 Value Destroyed (371) 371 Prototype IDs (1) 20 Alien Tech Used (0) 0 Bonus (0) 0 TOTAL SCORE: 1386 Bonus ------- None Cogmind --------- Core Integrity 211/400 Matter 300/300 Energy 45/100 System Corruption 0% Temperature Cool (0) Movement Rolling (150) Ox4 Location -9/Materials Parts ------- > --- POWER (2) -------- Faulty Heavy Ion Engine > --- PROPULSION (2) --- Armored Wheel > --- UTILITY (3) ------ Cooling System High-capacity Storage Unit Weight Redist. System > --- WEAPON (2) ------- Light Assault Rifle > --- INVENTORY (20) --- Light Treads Armored Wheel Armored Wheel Peak State ------------ > --- POWER ------------ Heavy Ion Engine > --- PROPULSION ------- Armored Wheel Armored Wheel > --- UTILITY ---------- Cooling System High-capacity Storage Unit Weight Redist. System > --- WEAPON ----------- Light Assault Rifle > --- INVENTORY -------- Light Treads Armored Wheel Armored Wheel [Rating: 13] Favorites ----------- Power Ion Engine Engine Ion Engine Power Core Light Nuclear Core Propulsion Light Treads Treads Light Treads Wheel Armored Wheel Utility High-capacity Storage Unit Device Weight Redist. System Storage High-capacity Storage Unit Protection Propulsion Shielding Weapon Light Assault Rifle Energy Gun Medium Laser Ballistic Gun Light Assault Rifle Build | -11 -10 -9 ------- Run | Yrd Mat Mat Slots Evolved 2 | . . 2 Power 1 | . . 1 Propulsion . | . . . Utility 1 | . . 1 Weapon . | . . . Parts Attached 27 | 6 13 8 Power 7 | 1 3 3 Engine 6 | 1 2 3 Core 1 | . 1 . Reactor . | . . . Propulsion 9 | 2 4 3 Treads 5 | . 4 1 Leg . | . . . Wheel 4 | 2 . 2 Hover . | . . . Flight . | . . . Utility 6 | 1 4 1 Device 2 | . 1 1 Storage 3 | 1 2 . Processor . | . . . Hackware . | . . . Protection 1 | . 1 . Artifact . | . . . Weapon 5 | 2 2 1 Energy Gun 1 | 1 . . Energy Cannon . | . . . Ballistic Gun 4 | 1 2 1 Ballistic Cannon . | . . . Launcher . | . . . Special Weapon . | . . . Impact Weapon . | . . . Slashing Weapon . | . . . Piercing Weapon . | . . . Special Melee Weapon . | . . . Unidentified Prototypes 1 | . . 1 Parts Lost 11 | . 3 8 Power 4 | . 1 3 Propulsion 4 | . 1 3 Utility . | . . . Weapon 3 | . 1 2 Highest Loss Streak 6 | . 1 6 To Critical Strikes . | . . . Average Slot Usage (%) 80 | . 94 67 Engine 7 | . 8 5 Core 3 | . 5 2 Treads 14 | . 19 9 Wheel 7 | . 6 8 Device 10 | . 4 17 Storage 12 | . 14 11 Protection 2 | . 5 . Energy Gun 3 | . 6 . Ballistic Gun 17 | . 21 12 Naked Turns . | . . . Heaviest Build 51 | 14 48 51 Greatest Support 46 | 32 46 46 Greatest Overweight (x) 5 | . 5 4 Average Overweight (x) . | . . . Largest Inventory Capacity 20 | 8 20 20 Average Capacity 16 | 7 13 20 Most Carried 7 | 4 7 4 Average Carried 2 | 1 2 1 Final Capacity 20 | 8 20 20 Final Carried 3 | 2 2 3 Class Distribution -------------------- 92% | Mutant 7% | Scavenger-Mutant Dominant Class ---------------- Mutant | -10/Materials Mutant | -9/Materials Resources | -11 -10 -9 ----------- Run | Yrd Mat Mat Matter Collected 584 | 205 260 119 Remotely . | . . . Salvage Created 557 | . 342 215 Parts 38 | . 25 13 Haulers Intercepted 2 | . 1 1 Recyclers Shooed 1 | . . 1 Parts Field Recycled . | . . . Retrieved Matter . | . . . Parts Self-Destructed . | . . . Prevented . | . . . Kills | -11 -10 -9 ------- Run | Yrd Mat Mat Combat Hostiles Destroyed 14 | . 8 6 Guns 14 | . 8 6 Classes Destroyed 5 | . 5 . Worker 1 | . 1 . Hauler 2 | . 1 1 Watcher 2 | . 2 . Swarmer 7 | . 3 4 Grunt 7 | . 5 2 Best Kill Streak 5 | . 5 4 Combat Bots Only 4 | . 3 4 Max Kills in Single Turn 1 | . 1 1 Gunslinging . | . . . Exploded . | . . . Melee . | . . . Uniques/NPCs Destroyed . | . . . Combat | -11 -10 -9 -------- Run | Yrd Mat Mat Hostile Shots Fired 192 | . 76 116 Missed 43 | . 14 29 Damage Taken 1552 | . 654 898 Core 324 | . 135 189 Absorbed by Shields . | . . . Redirected to Shielding 43 | . 43 . Core Remaining (%) 73 | 100 46 . Volleys Fired 82 | . 40 42 Largest 2 | . 2 2 Hottest 70 | . 70 40 Shots Fired 116 | . 71 45 Gun 116 | . 71 45 Cannon . | . . . Launcher . | . . . Special . | . . . Kinetic 96 | . 51 45 Thermal 20 | . 20 . Explosive . | . . . Electromagnetic . | . . . Robot Hit Streak 7 | . 7 5 Robot Miss Streak 6 | . 6 3 Penetration Max . | . . . Secondary Targets 1 | . 1 . Max Gunslinging Chain 1 | . 1 . Shots Hit Robots 73 | . 45 28 Core Hits 36 | . 20 16 Critical Kills . | . . . Critical Parts Destroyed 1 | . 1 . Critical Strikes 1 | . 1 . Destroy 1 | . 1 . Melee Attacks . | . . . Impact . | . . . Slashing . | . . . Piercing . | . . . Sneak Attacks . | . . . Combat Hostiles . | . . . Follow-up Attacks . | . . . Damage Inflicted 815 | . 548 267 Guns 786 | . 548 238 Cannons . | . . . Explosions . | . . . Melee . | . . . Ramming 29 | . . 29 Kinetic 613 | . 375 238 Thermal 173 | . 173 . Explosive . | . . . Electromagnetic . | . . . Impact . | . . . Slashing . | . . . Piercing . | . . . Highest Corruption . | . . . Average Corruption . | . . . Corruption Purged . | . . . Corruption Blocked . | . . . Overload Shots . | . . . Overflow Damage . | . . . Projectiles . | . . . Explosions . | . . . Melee . | . . . Knockbacks . | . . . Impact . | . . . Kinetic . | . . . Secondary . | . . . Self-Inflicted Damage 10 | . . 10 Shots . | . . . Rammed 8 | . . 8 Targets Rammed 8 | . . 8 Kicked . | . . . Crushed . | . . . Highest Temperature 195 | . 195 1 Average Temperature 59 | . 61 1 Received Heat Transfer 579 | . 240 339 Siege Activations . | . . . Robots Corrupted . | . . . Combat Hostiles . | . . . Parts Fried . | . . . Impact Corruptions . | . . . Robots Melted . | . . . Combat Hostiles . | . . . Parts Melted 1 | . 1 . Heat Transferred 518 | . 518 . Parts Sabotaged . | . . . Parts Stolen . | . . . Parts Stripped . | . . . Power Chain Reactions . | . . . Alert | -11 -10 -9 ------- Run | Yrd Mat Mat Peak Influence 209 | . 181 209 Initial 9 | . . 9 Average 75 | . 74 83 Maximum Alert Level 1 | . . 1 Low Security (%) 99 | 100 100 99 Level 1 . | . . . Level 2 . | . . . Level 3 . | . . . Level 4 . | . . . Level 5 . | . . . High Security . | . . . Max Security . | . . . Squads Dispatched 3 | . 1 2 Investigation 1 | . 1 . Extermination . | . . . Reinforcement 2 | . . 2 Assault . | . . . Garrison . | . . . Intercept . | . . . Searches Triggered . | . . . Construction Impeded . | . . . Haulers Reinforced . | . . . Active Scanning Responses . | . . . Cargo Convoy Interrupts . | . . . Stealth | -11 -10 -9 --------- Run | Yrd Mat Mat Distress Signals 2 | . 2 . Communications Jammed . | . . . Distress Signals . | . . . Times Spotted 32 | . 13 19 Peak Tracking Total 7 | . 5 7 Tactical Retreats 3 | . . 3 Traps | -11 -10 -9 ------- Run | Yrd Mat Mat Traps Triggered 1 | . 1 . Indirectly . | . . . Trap Hack Attempts . | . . . Triggered . | . . . Disarmed . | . . . Reprogrammed . | . . . Reused . | . . . Traps Extracted . | . . . Installed . | . . . Triggered . | . . . Machines | -11 -10 -9 ---------- Run | Yrd Mat Mat Machines Disabled . | . . . Max in Single Turn . | . . . Machines Repaired . | . . . Machines Dismantled . | . . . Machines Sabotaged . | . . . Overloaded Fab Kills . | . . . Hacking | -11 -10 -9 --------- Run | Yrd Mat Mat Machines Accessed 2 | . 2 . Terminals 2 | . 2 . Fabricators . | . . . Repair Stations . | . . . Recycling Units . | . . . Scanalyzers . | . . . Garrison Access . | . . . Total Hacks 4 | . 4 . Successful 1 | . 1 . Failed 3 | . 3 . Catastrophic 1 | . 1 . Database Lockouts . | . . . Manual . | . . . Terminals 4 | . 4 . Fabricators . | . . . Repair Stations . | . . . Recycling Units . | . . . Scanalyzers . | . . . Garrison Access . | . . . Terminal Hacks 1 | . 1 . Locate Traps 1 | . 1 . Fabricator Hacks . | . . . Repair Station Hacks . | . . . Recycling Unit Hacks . | . . . Scanalyzer . | . . . Garrison Access Hacks . | . . . Unauthorized Hacks . | . . . Terminals . | . . . Fabricators . | . . . Repair Stations . | . . . Recycling Units . | . . . Scanalyzers . | . . . Garrison Access . | . . . Data Cores Recovered . | . . . Used . | . . . Hacking Detections 1 | . 1 . Full Trace Events 1 | . 1 . Feedback Events . | . . . Feedback Blocked . | . . . Robot Schematics Acquired . | . . . Robots Built . | . . . Authchips . | . . . Time . | . . . Total Robot Build Rating . | . . . Part Schematics Acquired . | . . . Parts Built . | . . . Authchips . | . . . Time . | . . . Total Part Build Rating . | . . . Parts Repaired . | . . . Time . | . . . Parts Recycled . | . . . Recycled Matter . | . . . Retrieved Matter . | . . . Retrieved Components . | . . . Parts Scanalyzed . | . . . Part Schematics Acquired . | . . . Parts Damaged . | . . . Bothacking | -11 -10 -9 ------------ Run | Yrd Mat Mat Used RIF Installer . | . . . Robots Hacked . | . . . Non-combat . | . . . Combat . | . . . Robot Hacks Applied . | . . . Relay Couplers Released . | . . . Fabnet Peak Effective % . | . . . Robots Rewired . | . . . Allies Hacked . | . . . Hacks Repelled . | . . . Allies | -11 -10 -9 -------- Run | Yrd Mat Mat Total Allies . | . . . Largest Group . | . . . Highest-Rated Group . | . . . Highest-Rated Ally . | . . . Total Orders . | . . . Ally Attacks . | . . . Total Damage . | . . . Kills . | . . . Allies Corrupted . | . . . Allies Melted . | . . . Intel | -11 -10 -9 ------- Run | Yrd Mat Mat Robot Analysis Total . | . . . Derelict Logs Recovered . | . . . Drone Launches . | . . . Drone Recoveries . | . . . Exploration | -11 -10 -9 ------------- Run | Yrd Mat Mat Turns Passed 1065 | 46 519 500 Spaces Moved 490 | 38 206 246 Core 13 | 10 3 . Treads 224 | . 130 94 Legs . | . . . Wheels 253 | 28 73 152 Hover . | . . . Flight . | . . . Fastest Speed 50 | 50 100 105 Average Speed 154 | 86 168 153 Slowest Speed 300 | 100 300 240 Overloaded Moves . | . . . Propulsion Burnouts . | . . . Robots Hopped . | . . . Cave-ins Triggered . | . . . Exploration Rate (%) 21 | 4 43 17 Regions Visited 2 Branch Regions . Pre-discovered Areas . | . . . Known Exits Taken . | . . . Unknown Exits Taken 2 | 1 1 . Scrap Searched . | . . . Spaces Dug . | . . . Terrain Destroyed . | . . . Melee . | . . . Projectile . | . . . AOE . | . . . Terrain Rammed . | . . . Walls Destroyed . | . . . Machines Disabled . | . . . Actions | -11 -10 -9 --------- Run | Yrd Mat Mat Total 687 | 51 309 327 Wait 48 | . 34 14 Move 488 | 37 205 246 Hop . | . . . Pick Up 28 | 8 12 8 Fast Attach . | . . . Attach 22 | 6 8 8 Detach 1 | . . 1 Swap 5 | . 5 . Drop 5 | . 5 . Fire 82 | . 40 42 Melee . | . . . Ram 6 | . . 6 Kick . | . . . Crush 2 | . . 2 Escape Stasis . | . . . Rewire . | . . . Trap . | . . . Miscellaneous . | . . . Route ------- -11/Scrapyard -10/Materials (discovered 2 exits: *Mat x2) -9/Materials History --------- Turn | Location | Event 2 | -11/Scrapyard | Met Revision 17 6 | -11/Scrapyard | Discovered new exit (range 15) 47 | -11/Scrapyard | Entered Materials 313 | -10/Materials | Core integrity fell below 50% 340 | -10/Materials | Build established: Mutant 409 | -10/Materials | Discovered new exit (range 10) 503 | -10/Materials | Discovered new exit (range 15) 566 | -10/Materials | Entered another Materials area 566 | -9/Materials | Evolved 2 slots: Power x1, Utility x1 774 | -9/Materials | Lost 6 parts (2p2n2w) 1066 | -9/Materials | Self-destructed Last Messages --------------- to Terminal M012. O-16 Technician locks terminal. K-01 Serf collects debris. K-01 Serf cleans the Atomic Centrifuge. K-01 Serf collects debris. K-01 Serf cleans the Atomic Centrifuge. Lgt. Ion Engine destroyed. K-01 Serf cleans the Atomic Centrifuge. Slammed into A-02 Transporter. A-02 Transporter destroyed. R-06 Scavenger collects Ion Engine. Acquired Prototype Engine. R-06 Scavenger collects Prototype Engine. R-06 Scavenger collects Med. Storage Unit. Identified Hvy. Ion Engine. Arm. Wheel broken. Faulty integration triggers power surge. Slammed into R-06 Scavenger. Acquired 16 matter. Broken Arm. Wheel destroyed. Map ----- +----------------------------------------------------+ | ????????????????????????????# """ #??# """ # | | ????????????????????????????# #??# """ # | | ????????????????????????????# #??# """ # | | ??????????????????????####### """ #??# # | | ??????????????????????# # """ ########+#### | | ??????????????????????# """ | | ??????????????????????# | | ??????????????????????# | | ??????????????????????# #################+### | | ??????????????????????## ##???????## ## | | ???????????????????????# Y#???? ## """ ## | | ???????????????????????# r# """ ??# """ ## | | ???????????????????????# + """ ??# """ ## | | ???????????????????????# # """ ??# """ ## | | ???????????????????????# # ## = = ## | | ???????????????????????#gg #? """ ?## = ### | | ???????????????????????# g#?? """ ## == ## | | ???????????????????????# r #???""" ?##########/## | | ???????????????????????# #??? ???????????# ## | | ???????????????????????# r#????##???????????# ## | | ???????????????????????# #?????????????????# ## | | ???????????????????????# #?????????????????# ## | | ???????????????????????# #?????????????????# ## | | ???????????????????????# #?????????????????# ## | | ???????????????????????#*=%#?????????????????# ## | | ???????????????????????# @*#?????????????????# ## | | ???????????????????????# !!#?????????????????# ## | | ???????????????????????# #?????????????????# ## | | ?????????????????????? +?????????????????# ### | | ?????????????????????### #?????????????????# #?? | | ???????????????????????### #?????????????????# ### | | ?????????????????????????# #?????????????????# | | ?????????????????????????# #?????????????????#### | | ?????????????????????????# #????????????????????# | | ?????????????????????????? #????????????????????# | | ?????????????????????????? ????????????????????# | | ??????????????????????????+#????????????????????# | | ????????????????????????????????????????????????# | | ????????????????????????????????????????????????## | | ?????????????????????????????????????????????????# | | ?????????????????????????????????????????????????# | | ?????????????????????????????????????????????????# | | ?????????????????????????????????????????????????# | | ????????????????????????????????????????????????? | | ????????????????????????????????????????????????? | | ????????????????????????????????????????????????? | | ????????????????????????????????????????????????? | | ?????????????????????????????????????????????????? | | ?????????????????????????????????????????????????? | | ?????????????????????????????????????????????????? | +----------------------------------------------------+ Best States ------------- Heat Dissipation 50 Energy Generation 14 Energy Capacity 250 Matter Stores 300 Matter Capacity 300 Sight Range 16 Terrain Scan Density 10 Additional Mass Support 6 Propulsion Shielding 33 Evasion (%) 50 Recoil Reduction 2 Item Schematics ----------------- None Robot Schematics ------------------ None Fabricated ------------ Nothing Alien Tech Used ----------------- None Achievements -------------- None Challenges ------------ None Game ------ Seed ExperimentalThermicKatana Manual? 0 Play Time 00:11:45 Cumulative 30.1 hours Start 2024.05.02 @ 20:01:55 End 2024.05.02 @ 20:10:13 Sessions 1 Manual Loads 0 Difficulty Rogue Special Mode None Game No. 83 Rogue 81 Adventurer 2 Explorer 0 Win Type - Total 0 Types 0/0/0/0/0/0/0/0/0 Lore% 22 Gallery% 32 Achievement% 23 Wizard Run 0 Options --------- Layout 1 ASCII 0 Keyboard 0 Movement Mouse Keybinds 0 Fullscreen 1 Font 16/SmallcapsGlow Map View 27x19 Zoom Use 99% Tactical HUD 0 Map Filters NONE Filters NONE Steam 1 RUN: 95ae3553-0f81-4c07-8ea1-49da61930f37